[Event "Titled Tuesday Blitz November 07 Early 2023"]
[White "Llorente Zaro, Alfonso"]
[Black "Kukhmazov, Arsen"]
[WhiteFideId "2254131"]
[BlackFideId "24108260"]
[WhiteElo "2748"]
[BlackElo "2912"]
[Result "0-1"]
[Round "6"]
[TimeControl "180+1"]
[Date "2023.11.07"]
[WhiteClock "0:00:00"]
[BlackClock "0:00:02"]
[Board "19"]

1. e4 {[%clk 0:03:00]}  c6 {[%clk 0:03:00]} 2. Nf3 {[%clk 0:02:59]}  d5 {[%clk 0:03:01]} 3. d3 {[%clk 0:02:59]}  dxe4 {[%clk 0:03:01]} 4. dxe4 {[%clk 0:03:00]}  Qxd1+ {[%clk 0:03:01]} 5. Kxd1 {[%clk 0:03:00]}  Nf6 {[%clk 0:03:02]} 6. Nbd2 {[%clk 0:03:00]}  Nbd7 {[%clk 0:03:02]} 7. Ne1 {[%clk 0:02:56]}  Ng4 {[%clk 0:03:00]} 8. Nd3 {[%clk 0:02:53]}  g6 {[%clk 0:03:00]} 9. Be2 {[%clk 0:02:50]}  h5 {[%clk 0:03:00]} 10. Nc4 {[%clk 0:02:46]}  Bg7 {[%clk 0:03:00]} 11. Bf4 {[%clk 0:02:34]}  b5 {[%clk 0:02:48]} 12. Na5 {[%clk 0:02:33]}  c5 {[%clk 0:02:48]} 13. f3 {[%clk 0:02:29]}  Ngf6 {[%clk 0:02:28]} 14. c4 {[%clk 0:02:20]}  bxc4 {[%clk 0:01:45]} 15. Nxc4 {[%clk 0:02:03]}  Ba6 {[%clk 0:01:45]} 16. Nde5 {[%clk 0:02:00]}  Nb6 {[%clk 0:01:01]} 17. Na5 {[%clk 0:01:47]}  Bxe2+ {[%clk 0:00:44]} 18. Kxe2 {[%clk 0:01:47]}  Nfd7 {[%clk 0:00:45]} 19. Nxd7 {[%clk 0:01:42]}  Kxd7 {[%clk 0:00:46]} 20. Rhd1+ {[%clk 0:01:39]}  Ke6 {[%clk 0:00:46]} 21. Rac1 {[%clk 0:00:46]}  Rac8 {[%clk 0:00:40]} 22. b3 {[%clk 0:00:42]}  Bd4 {[%clk 0:00:34]} 23. Rc2 {[%clk 0:00:39]}  f6 {[%clk 0:00:26]} 24. Be3 {[%clk 0:00:35]}  Bxe3 {[%clk 0:00:15]} 25. Kxe3 {[%clk 0:00:35]}  Rc7 {[%clk 0:00:16]} 26. Nc4 {[%clk 0:00:30]}  Rhc8 {[%clk 0:00:15]} 27. g3 {[%clk 0:00:24]}  g5 {[%clk 0:00:15]} 28. f4 {[%clk 0:00:20]}  gxf4+ {[%clk 0:00:15]} 29. gxf4 {[%clk 0:00:20]}  Rg8 {[%clk 0:00:16]} 30. Kf3 {[%clk 0:00:19]}  Nd7 {[%clk 0:00:13]} 31. Ne3 {[%clk 0:00:18]}  Nb6 {[%clk 0:00:12]} 32. Rdc1 {[%clk 0:00:17]}  Rgc8 {[%clk 0:00:11]} 33. Nf5 {[%clk 0:00:17]}  Kf7 {[%clk 0:00:10]} 34. Rg1 {[%clk 0:00:15]}  c4 {[%clk 0:00:10]} 35. Rg7+ {[%clk 0:00:14]}  Ke6 {[%clk 0:00:10]} 36. Nd4+ {[%clk 0:00:09]}  Kd7 {[%clk 0:00:09]} 37. b4 {[%clk 0:00:09]}  c3 {[%clk 0:00:09]} 38. Nf5 {[%clk 0:00:08]}  Re8 {[%clk 0:00:07]} 39. Ke2 {[%clk 0:00:07]}  Na4 {[%clk 0:00:07]} 40. Kd3 {[%clk 0:00:07]}  Kc8 {[%clk 0:00:08]} 41. Nd4 {[%clk 0:00:05]}  Rd8 {[%clk 0:00:08]} 42. Ke3 {[%clk 0:00:06]}  Rcd7 {[%clk 0:00:03]} 43. Ne6 {[%clk 0:00:06]}  Rd3+ {[%clk 0:00:03]} 44. Ke2 {[%clk 0:00:05]}  Rd2+ {[%clk 0:00:04]} 45. Rxd2 {[%clk 0:00:06]}  Rxd2+ {[%clk 0:00:05]} 46. Ke1 {[%clk 0:00:06]}  Rxh2 {[%clk 0:00:03]} 47. Kd1 {[%clk 0:00:05]}  c2+ {[%clk 0:00:02]} 48. Kc1 {[%clk 0:00:05]}  Nc3 {[%clk 0:00:03]} 49. Rg8+ {[%clk 0:00:05]}  Kb7 {[%clk 0:00:03]} 50. Nc5+ {[%clk 0:00:04]}  Kc7 {[%clk 0:00:03]} 51. Kb2 {[%clk 0:00:02]}  Nxa2 {[%clk 0:00:02]} 52. Ne6+ {[%clk 0:00:00]}  Kd6 {[%clk 0:00:02]} 0-1


[Site "https://www.chess.com"]

[Event "Titled Tuesday Blitz November 07 Early 2023"]
[White "Sethuraman, S.P."]
[Black "Timerkhanov, Alexander"]
[WhiteFideId "5021596"]
[BlackFideId "24177938"]
[WhiteElo "2901"]
[BlackElo "2742"]
[Result "1-0"]
[Round "6"]
[TimeControl "180+1"]
[Date "2023.11.07"]
[WhiteClock "0:00:20"]
[BlackClock "0:00:23"]
[Board "20"]

1. d4 {[%clk 0:03:00]}  d5 {[%clk 0:02:59]} 2. c4 {[%clk 0:03:01]}  c6 {[%clk 0:03:00]} 3. Nf3 {[%clk 0:03:01]}  Nf6 {[%clk 0:03:00]} 4. e3 {[%clk 0:03:01]}  a6 {[%clk 0:02:59]} 5. Nc3 {[%clk 0:03:00]}  Bf5 {[%clk 0:02:59]} 6. Be2 {[%clk 0:02:57]}  e6 {[%clk 0:02:58]} 7. Nh4 {[%clk 0:02:56]}  Bg6 {[%clk 0:02:49]} 8. Nxg6 {[%clk 0:02:54]}  hxg6 {[%clk 0:02:49]} 9. Bd2 {[%clk 0:02:48]}  Bd6 {[%clk 0:02:49]} 10. h3 {[%clk 0:02:47]}  Nbd7 {[%clk 0:02:49]} 11. Qc2 {[%clk 0:02:38]}  Qe7 {[%clk 0:02:45]} 12. O-O-O {[%clk 0:02:35]}  dxc4 {[%clk 0:02:43]} 13. e4 {[%clk 0:02:27]}  e5 {[%clk 0:02:38]} 14. dxe5 {[%clk 0:02:26]}  Nxe5 {[%clk 0:02:36]} 15. f4 {[%clk 0:02:26]}  Nd3+ {[%clk 0:02:33]} 16. Bxd3 {[%clk 0:02:26]}  cxd3 {[%clk 0:02:34]} 17. Qxd3 {[%clk 0:02:27]}  Bb4 {[%clk 0:02:00]} 18. Rhe1 {[%clk 0:02:19]}  O-O {[%clk 0:01:56]} 19. Qf3 {[%clk 0:02:12]}  Rfe8 {[%clk 0:01:53]} 20. e5 {[%clk 0:02:03]}  Bxc3 {[%clk 0:01:52]} 21. Bxc3 {[%clk 0:02:01]}  Nd5 {[%clk 0:01:52]} 22. Bd2 {[%clk 0:02:01]}  a5 {[%clk 0:01:44]} 23. h4 {[%clk 0:01:59]}  a4 {[%clk 0:01:38]} 24. a3 {[%clk 0:01:59]}  Ra6 {[%clk 0:01:34]} 25. h5 {[%clk 0:01:58]}  Rb6 {[%clk 0:01:29]} 26. hxg6 {[%clk 0:01:54]}  fxg6 {[%clk 0:01:28]} 27. Qe4 {[%clk 0:01:11]}  Qc5+ {[%clk 0:01:28]} 28. Qc2 {[%clk 0:01:11]}  Qb5 {[%clk 0:01:28]} 29. Re4 {[%clk 0:01:02]}  Rd8 {[%clk 0:01:10]} 30. e6 {[%clk 0:00:57]}  Re8 {[%clk 0:01:09]} 31. Re5 {[%clk 0:00:54]}  Qb3 {[%clk 0:01:07]} 32. g4 {[%clk 0:00:45]}  Qxc2+ {[%clk 0:01:04]} 33. Kxc2 {[%clk 0:00:45]}  Rb5 {[%clk 0:01:05]} 34. Rde1 {[%clk 0:00:40]}  Nc7 {[%clk 0:01:00]} 35. Rxb5 {[%clk 0:00:25]}  Nxb5 {[%clk 0:01:01]} 36. Bc3 {[%clk 0:00:26]}  Nxc3 {[%clk 0:00:55]} 37. Kxc3 {[%clk 0:00:25]}  Kf8 {[%clk 0:00:55]} 38. f5 {[%clk 0:00:20]}  gxf5 {[%clk 0:00:43]} 39. gxf5 {[%clk 0:00:21]}  Ke7 {[%clk 0:00:44]} 40. Rd1 {[%clk 0:00:20]}  Kf6 {[%clk 0:00:44]} 41. Rd7 {[%clk 0:00:20]}  b5 {[%clk 0:00:43]} 42. Rf7+ {[%clk 0:00:20]}  Kg5 {[%clk 0:00:41]} 43. Kd4 {[%clk 0:00:20]}  g6 {[%clk 0:00:36]} 44. Ke5 {[%clk 0:00:18]}  gxf5 {[%clk 0:00:34]} 45. Rxf5+ {[%clk 0:00:19]}  Kg6 {[%clk 0:00:34]} 46. Rf6+ {[%clk 0:00:20]}  Kg7 {[%clk 0:00:34]} 47. Rf7+ {[%clk 0:00:20]}  Kg6 {[%clk 0:00:34]} 48. Rc7 {[%clk 0:00:20]}  Rd8 {[%clk 0:00:28]} 49. e7 {[%clk 0:00:20]}  Rh8 {[%clk 0:00:23]} 50. Ke6 {[%clk 0:00:20]} 1-0


[Site "https://www.chess.com"]

[Event "Titled Tuesday Blitz November 07 Early 2023"]
[White "Kamsky, Gata"]
[Black "Borgaonkar Akshay"]
[WhiteFideId "2000024"]
[BlackFideId "25639110"]
[WhiteElo "2852"]
[BlackElo "2674"]
[Result "1-0"]
[Round "6"]
[TimeControl "180+1"]
[Date "2023.11.07"]
[WhiteClock "0:01:17"]
[BlackClock "0:01:12"]
[Board "29"]

1. d4 {[%clk 0:03:00]}  Nf6 {[%clk 0:03:00]} 2. Bf4 {[%clk 0:02:59]}  g6 {[%clk 0:03:00]} 3. c3 {[%clk 0:02:59]}  Bg7 {[%clk 0:03:00]} 4. Nf3 {[%clk 0:02:59]}  O-O {[%clk 0:03:01]} 5. h3 {[%clk 0:02:56]}  d6 {[%clk 0:03:01]} 6. e3 {[%clk 0:02:53]}  c5 {[%clk 0:03:02]} 7. dxc5 {[%clk 0:02:53]}  dxc5 {[%clk 0:03:01]} 8. Qxd8 {[%clk 0:02:54]}  Rxd8 {[%clk 0:03:02]} 9. Nbd2 {[%clk 0:02:54]}  Nc6 {[%clk 0:02:58]} 10. Bc7 {[%clk 0:02:54]}  Rd7 {[%clk 0:02:57]} 11. Bh2 {[%clk 0:02:54]}  b6 {[%clk 0:02:55]} 12. Bb5 {[%clk 0:02:54]}  Bb7 {[%clk 0:02:51]} 13. Nc4 {[%clk 0:02:48]}  Rdd8 {[%clk 0:02:43]} 14. a4 {[%clk 0:02:38]}  Ne4 {[%clk 0:02:41]} 15. O-O {[%clk 0:02:37]}  Nd6 {[%clk 0:02:36]} 16. Bxd6 {[%clk 0:02:35]}  exd6 {[%clk 0:02:37]} 17. a5 {[%clk 0:02:35]}  Nxa5 {[%clk 0:02:25]} 18. Nxa5 {[%clk 0:02:34]}  bxa5 {[%clk 0:02:26]} 19. Rxa5 {[%clk 0:02:34]}  Bxf3 {[%clk 0:02:26]} 20. gxf3 {[%clk 0:02:33]}  Rab8 {[%clk 0:02:26]} 21. Rd1 {[%clk 0:02:14]}  d5 {[%clk 0:02:26]} 22. c4 {[%clk 0:01:54]}  dxc4 {[%clk 0:02:23]} 23. Rxd8+ {[%clk 0:01:53]}  Rxd8 {[%clk 0:02:24]} 24. Bxc4 {[%clk 0:01:51]}  Bxb2 {[%clk 0:02:19]} 25. Rxa7 {[%clk 0:01:51]}  Rf8 {[%clk 0:02:20]} 26. Rc7 {[%clk 0:01:46]}  Ba3 {[%clk 0:02:15]} 27. e4 {[%clk 0:01:46]}  h5 {[%clk 0:02:12]} 28. Kg2 {[%clk 0:01:40]}  Kg7 {[%clk 0:02:12]} 29. f4 {[%clk 0:01:40]}  Kf6 {[%clk 0:01:44]} 30. Kf3 {[%clk 0:01:38]}  Kg7 {[%clk 0:01:40]} 31. e5 {[%clk 0:01:38]}  Kg8 {[%clk 0:01:35]} 32. f5 {[%clk 0:01:37]}  gxf5 {[%clk 0:01:30]} 33. Kf4 {[%clk 0:01:38]}  Bb2 {[%clk 0:01:29]} 34. Kxf5 {[%clk 0:01:38]}  Bd4 {[%clk 0:01:28]} 35. f4 {[%clk 0:01:37]}  Be3 {[%clk 0:01:28]} 36. Rd7 {[%clk 0:01:31]}  Bd4 {[%clk 0:01:24]} 37. Kf6 {[%clk 0:01:30]}  Kh7 {[%clk 0:01:14]} 38. Rxf7+ {[%clk 0:01:16]}  Rxf7+ {[%clk 0:01:13]} 39. Kxf7 {[%clk 0:01:17]}  Kh6 {[%clk 0:01:12]} 40. e6 {[%clk 0:01:17]} 1-0


[Site "https://www.chess.com"]

[Event "Titled Tuesday Blitz November 07 Early 2023"]
[White "Rustemov, Alexander"]
[Black "Matinian, Nikita"]
[WhiteFideId "4119002"]
[BlackFideId "24129100"]
[WhiteElo "2845"]
[BlackElo "2665"]
[Result "0-1"]
[Round "6"]
[TimeControl "180+1"]
[Date "2023.11.07"]
[WhiteClock "0:00:07"]
[BlackClock "0:00:10"]
[Board "31"]

1. d4 {[%clk 0:03:00]}  Nf6 {[%clk 0:03:00]} 2. Bg5 {[%clk 0:03:01]}  d5 {[%clk 0:02:56]} 3. Nd2 {[%clk 0:03:00]}  c5 {[%clk 0:02:53]} 4. Bxf6 {[%clk 0:03:00]}  gxf6 {[%clk 0:02:53]} 5. dxc5 {[%clk 0:03:01]}  e5 {[%clk 0:02:52]} 6. e4 {[%clk 0:03:01]}  Bxc5 {[%clk 0:02:46]} 7. Qh5 {[%clk 0:02:57]}  Qb6 {[%clk 0:02:36]} 8. O-O-O {[%clk 0:02:56]}  Bxf2 {[%clk 0:02:36]} 9. Ngf3 {[%clk 0:02:54]}  Nc6 {[%clk 0:02:30]} 10. exd5 {[%clk 0:02:43]}  Nb4 {[%clk 0:02:30]} 11. Bc4 {[%clk 0:02:42]}  Rf8 {[%clk 0:00:55]} 12. a3 {[%clk 0:02:37]}  Na6 {[%clk 0:00:54]} 13. Kb1 {[%clk 0:02:32]}  Bd7 {[%clk 0:00:54]} 14. Ne4 {[%clk 0:02:27]}  O-O-O {[%clk 0:00:53]} 15. d6 {[%clk 0:02:11]}  Bc5 {[%clk 0:00:48]} 16. Bxa6 {[%clk 0:01:56]}  Bxa3 {[%clk 0:00:44]} 17. Bxb7+ {[%clk 0:01:45]}  Kxb7 {[%clk 0:00:42]} 18. b3 {[%clk 0:01:45]}  Be6 {[%clk 0:00:40]} 19. Nfd2 {[%clk 0:01:05]}  f5 {[%clk 0:00:25]} 20. Nc3 {[%clk 0:00:56]}  Rxd6 {[%clk 0:00:21]} 21. Qe2 {[%clk 0:00:40]}  Rfd8 {[%clk 0:00:18]} 22. Na4 {[%clk 0:00:26]}  Qb4 {[%clk 0:00:15]} 23. c3 {[%clk 0:00:17]}  Rxd2 {[%clk 0:00:13]} 24. cxb4 {[%clk 0:00:15]}  Rxe2 {[%clk 0:00:13]} 25. Rxd8 {[%clk 0:00:15]}  Bxb4 {[%clk 0:00:11]} 26. Rhd1 {[%clk 0:00:10]}  Bxb3 {[%clk 0:00:10]} 27. R1d7+ {[%clk 0:00:09]}  Kc6 {[%clk 0:00:10]} 28. Nb2 {[%clk 0:00:04]}  Re1+ {[%clk 0:00:07]} 29. Nd1 {[%clk 0:00:04]}  Ba5 {[%clk 0:00:06]} 30. Kb2 {[%clk 0:00:03]}  Bxd8 {[%clk 0:00:05]} 31. Rxd8 {[%clk 0:00:03]}  Bxd1 {[%clk 0:00:05]} 32. Rf8 {[%clk 0:00:02]}  Bh5 {[%clk 0:00:03]} 33. g3 {[%clk 0:00:02]}  Bg6 {[%clk 0:00:03]} 34. Kc3 {[%clk 0:00:02]}  Re3+ {[%clk 0:00:03]} 35. Kd2 {[%clk 0:00:02]}  Ra3 {[%clk 0:00:04]} 36. Ra8 {[%clk 0:00:02]}  Ra2+ {[%clk 0:00:04]} 37. Kc3 {[%clk 0:00:02]}  Rxh2 {[%clk 0:00:05]} 38. Rxa7 {[%clk 0:00:02]}  Rh3 {[%clk 0:00:05]} 39. Kd2 {[%clk 0:00:02]}  Rxg3 {[%clk 0:00:05]} 40. Ke2 {[%clk 0:00:03]}  f4 {[%clk 0:00:06]} 41. Kf2 {[%clk 0:00:03]}  Kd5 {[%clk 0:00:06]} 42. Ra5+ {[%clk 0:00:03]}  Ke4 {[%clk 0:00:06]} 43. Ra6 {[%clk 0:00:04]}  Kf5 {[%clk 0:00:06]} 44. Ra5 {[%clk 0:00:05]}  h5 {[%clk 0:00:06]} 45. Ra6 {[%clk 0:00:05]}  h4 {[%clk 0:00:07]} 46. Ra5 {[%clk 0:00:06]}  h3 {[%clk 0:00:07]} 47. Ra1 {[%clk 0:00:06]}  Rg2+ {[%clk 0:00:07]} 48. Kf1 {[%clk 0:00:05]}  f3 {[%clk 0:00:08]} 49. Ra8 {[%clk 0:00:04]}  h2 {[%clk 0:00:07]} 50. Rh8 {[%clk 0:00:05]}  Rg1+ {[%clk 0:00:08]} 51. Kf2 {[%clk 0:00:05]}  h1=Q {[%clk 0:00:08]} 52. Rxh1 {[%clk 0:00:06]}  Rxh1 {[%clk 0:00:08]} 53. Kxf3 {[%clk 0:00:07]}  Ra1 {[%clk 0:00:08]} 54. Ke3 {[%clk 0:00:07]}  Ra3+ {[%clk 0:00:09]} 55. Kd2 {[%clk 0:00:07]}  Kf4 {[%clk 0:00:09]} 56. Ke2 {[%clk 0:00:07]}  Ra2+ {[%clk 0:00:10]} 57. Kd1 {[%clk 0:00:07]}  Ke3 {[%clk 0:00:10]} 58. Kc1 {[%clk 0:00:07]}  Bd3 {[%clk 0:00:10]} 59. Kd1 {[%clk 0:00:07]}  Ra1# {[%clk 0:00:10]} 0-1


[Site "https://www.chess.com"]

[Event "Titled Tuesday Blitz November 07 Early 2023"]
[White "Beerdsen, Thomas"]
[Black "Adewumi, Tanitoluwa"]
[WhiteFideId "1030108"]
[BlackFideId "30966396"]
[WhiteElo "2844"]
[BlackElo "2643"]
[Result "0-1"]
[Round "6"]
[TimeControl "180+1"]
[Date "2023.11.07"]
[WhiteClock "0:00:31"]
[BlackClock "0:00:05"]
[Board "33"]

1. e4 {[%clk 0:03:00]}  c5 {[%clk 0:02:50]} 2. Nf3 {[%clk 0:03:01]}  e6 {[%clk 0:02:50]} 3. d4 {[%clk 0:03:01]}  cxd4 {[%clk 0:02:51]} 4. Bg5 {[%clk 0:03:01]}  Qb6 {[%clk 0:02:49]} 5. Qxd4 {[%clk 0:03:01]}  Qxd4 {[%clk 0:02:42]} 6. Nxd4 {[%clk 0:03:02]}  a6 {[%clk 0:02:40]} 7. Nd2 {[%clk 0:03:02]}  Nc6 {[%clk 0:02:23]} 8. Nxc6 {[%clk 0:03:02]}  bxc6 {[%clk 0:02:22]} 9. Nc4 {[%clk 0:03:03]}  Bc5 {[%clk 0:01:54]} 10. O-O-O {[%clk 0:02:52]}  d5 {[%clk 0:01:47]} 11. Na5 {[%clk 0:02:43]}  Bd7 {[%clk 0:01:46]} 12. f3 {[%clk 0:02:38]}  Ra7 {[%clk 0:01:15]} 13. Nb3 {[%clk 0:02:10]}  Bb6 {[%clk 0:01:07]} 14. c4 {[%clk 0:02:07]}  dxe4 {[%clk 0:00:48]} 15. c5 {[%clk 0:02:06]}  Bc7 {[%clk 0:00:43]} 16. fxe4 {[%clk 0:01:57]}  Nf6 {[%clk 0:00:42]} 17. Bd3 {[%clk 0:01:57]}  Ng4 {[%clk 0:00:40]} 18. Rhe1 {[%clk 0:01:50]}  f6 {[%clk 0:00:30]} 19. Bd2 {[%clk 0:01:47]}  Nf2 {[%clk 0:00:23]} 20. Bc4 {[%clk 0:01:45]}  Nxd1 {[%clk 0:00:21]} 21. Rxd1 {[%clk 0:01:46]}  Ke7 {[%clk 0:00:21]} 22. Na5 {[%clk 0:01:42]}  Rb8 {[%clk 0:00:18]} 23. Bc3 {[%clk 0:01:41]}  Be8 {[%clk 0:00:11]} 24. g3 {[%clk 0:01:37]}  Rb5 {[%clk 0:00:05]} 25. Bxb5 {[%clk 0:01:36]}  cxb5 {[%clk 0:00:05]} 26. e5 {[%clk 0:01:30]}  Bxa5 {[%clk 0:00:04]} 27. Bxa5 {[%clk 0:01:29]}  fxe5 {[%clk 0:00:04]} 28. Bd8+ {[%clk 0:01:26]}  Kf7 {[%clk 0:00:05]} 29. Rf1+ {[%clk 0:01:26]}  Kg6 {[%clk 0:00:04]} 30. b4 {[%clk 0:01:23]}  Rd7 {[%clk 0:00:04]} 31. Bb6 {[%clk 0:01:18]}  Rd4 {[%clk 0:00:05]} 32. a3 {[%clk 0:01:17]}  Bc6 {[%clk 0:00:06]} 33. Rf8 {[%clk 0:01:14]}  e4 {[%clk 0:00:06]} 34. Rc8 {[%clk 0:01:14]}  Bd5 {[%clk 0:00:03]} 35. Rf8 {[%clk 0:01:03]}  e3 {[%clk 0:00:04]} 36. Rf1 {[%clk 0:01:00]}  e2 {[%clk 0:00:04]} 37. Re1 {[%clk 0:00:31]}  Bf3 {[%clk 0:00:05]} 0-1


[Site "https://www.chess.com"]

[Event "Titled Tuesday Blitz November 07 Early 2023"]
[White "Nyzhnyk, Illya"]
[Black "Kalogeris, Ioannis"]
[WhiteFideId "14118084"]
[BlackFideId "4239563"]
[WhiteElo "2836"]
[BlackElo "2571"]
[Result "1-0"]
[Round "6"]
[TimeControl "180+1"]
[Date "2023.11.07"]
[WhiteClock "0:00:33"]
[BlackClock "0:00:00"]
[Board "34"]

1. d4 {[%clk 0:03:00]}  Nf6 {[%clk 0:02:59]} 2. Nf3 {[%clk 0:02:50]}  c6 {[%clk 0:02:59]} 3. c4 {[%clk 0:02:50]}  d5 {[%clk 0:02:58]} 4. Qc2 {[%clk 0:02:50]}  g6 {[%clk 0:02:51]} 5. g3 {[%clk 0:02:50]}  Bg7 {[%clk 0:02:49]} 6. Bg2 {[%clk 0:02:50]}  O-O {[%clk 0:02:48]} 7. O-O {[%clk 0:02:51]}  Ne4 {[%clk 0:02:40]} 8. Nbd2 {[%clk 0:02:45]}  Nd6 {[%clk 0:02:36]} 9. Ne5 {[%clk 0:02:34]}  Nf5 {[%clk 0:02:20]} 10. e3 {[%clk 0:02:32]}  c5 {[%clk 0:02:09]} 11. cxd5 {[%clk 0:02:16]}  cxd4 {[%clk 0:02:08]} 12. exd4 {[%clk 0:02:15]}  Nxd4 {[%clk 0:02:04]} 13. Qe4 {[%clk 0:02:16]}  Nb5 {[%clk 0:01:41]} 14. Ndc4 {[%clk 0:02:13]}  Nd6 {[%clk 0:01:34]} 15. Qe2 {[%clk 0:02:11]}  Nd7 {[%clk 0:01:14]} 16. Re1 {[%clk 0:01:59]}  Nxe5 {[%clk 0:01:12]} 17. Nxe5 {[%clk 0:02:00]}  Re8 {[%clk 0:00:59]} 18. Bf4 {[%clk 0:01:57]}  Qb6 {[%clk 0:00:53]} 19. Rac1 {[%clk 0:01:53]}  h5 {[%clk 0:00:50]} 20. h3 {[%clk 0:01:53]}  Bf5 {[%clk 0:00:45]} 21. g4 {[%clk 0:01:54]}  hxg4 {[%clk 0:00:45]} 22. hxg4 {[%clk 0:01:54]}  Bc8 {[%clk 0:00:42]} 23. Bf3 {[%clk 0:01:55]}  e6 {[%clk 0:00:36]} 24. Nd3 {[%clk 0:01:16]}  e5 {[%clk 0:00:31]} 25. Be3 {[%clk 0:01:04]}  Qd8 {[%clk 0:00:26]} 26. Nc5 {[%clk 0:00:59]}  e4 {[%clk 0:00:24]} 27. Bg2 {[%clk 0:00:59]}  b6 {[%clk 0:00:14]} 28. Nb3 {[%clk 0:00:55]}  Be5 {[%clk 0:00:15]} 29. Bd4 {[%clk 0:00:49]}  Qh4 {[%clk 0:00:14]} 30. Bxe5 {[%clk 0:00:46]}  Rxe5 {[%clk 0:00:12]} 31. f3 {[%clk 0:00:33]}  Rg5 {[%clk 0:00:09]} 32. Qf2 {[%clk 0:00:31]}  Qxf2+ {[%clk 0:00:06]} 33. Kxf2 {[%clk 0:00:32]}  exf3 {[%clk 0:00:07]} 34. Bxf3 {[%clk 0:00:32]}  Bxg4 {[%clk 0:00:04]} 35. Rg1 {[%clk 0:00:33]}  f5 {[%clk 0:00:04]} 36. Nd4 {[%clk 0:00:34]}  Rd8 {[%clk 0:00:03]} 37. Ne6 {[%clk 0:00:34]}  Bxf3 {[%clk 0:00:03]} 38. Rxg5 {[%clk 0:00:33]}  Ne4+ {[%clk 0:00:02]} 39. Kxf3 {[%clk 0:00:34]}  Nxg5+ {[%clk 0:00:03]} 40. Nxg5 {[%clk 0:00:35]}  Rxd5 {[%clk 0:00:03]} 41. Kf4 {[%clk 0:00:36]}  Rd2 {[%clk 0:00:02]} 42. Ke5 {[%clk 0:00:36]}  Kg7 {[%clk 0:00:00]} 43. Ne6+ {[%clk 0:00:33]} 1-0


[Site "https://www.chess.com"]

[Event "Titled Tuesday Blitz November 07 Early 2023"]
[White "Rasulov, Vugar"]
[Black "Rosen, Eric"]
[WhiteFideId "13402390"]
[BlackFideId "2032562"]
[WhiteElo "2968"]
[BlackElo "2746"]
[Result "1-0"]
[Round "6"]
[TimeControl "180+1"]
[Date "2023.11.07"]
[WhiteClock "0:00:21"]
[BlackClock "0:00:04"]
[Board "36"]

1. Nf3 {[%clk 0:03:00]}  d5 {[%clk 0:02:59]} 2. e3 {[%clk 0:03:00]}  Nf6 {[%clk 0:03:00]} 3. c4 {[%clk 0:03:00]}  e6 {[%clk 0:02:59]} 4. Nc3 {[%clk 0:03:00]}  b6 {[%clk 0:02:57]} 5. cxd5 {[%clk 0:03:00]}  exd5 {[%clk 0:02:57]} 6. g3 {[%clk 0:03:00]}  Bb7 {[%clk 0:02:54]} 7. d4 {[%clk 0:03:00]}  a6 {[%clk 0:02:53]} 8. Bh3 {[%clk 0:02:59]}  Bd6 {[%clk 0:02:52]} 9. O-O {[%clk 0:02:59]}  Nbd7 {[%clk 0:02:52]} 10. b3 {[%clk 0:02:58]}  Qe7 {[%clk 0:02:52]} 11. Bb2 {[%clk 0:02:58]}  O-O-O {[%clk 0:02:50]} 12. a4 {[%clk 0:02:55]}  Kb8 {[%clk 0:02:50]} 13. Ne2 {[%clk 0:02:45]}  h5 {[%clk 0:02:41]} 14. Qc1 {[%clk 0:02:42]}  Ne4 {[%clk 0:02:37]} 15. Ba3 {[%clk 0:02:40]}  g5 {[%clk 0:02:35]} 16. Bxd6 {[%clk 0:02:30]}  Qxd6 {[%clk 0:02:29]} 17. Bf5 {[%clk 0:02:00]}  h4 {[%clk 0:02:12]} 18. g4 {[%clk 0:01:56]}  h3 {[%clk 0:02:13]} 19. a5 {[%clk 0:01:51]}  Qf6 {[%clk 0:01:57]} 20. axb6 {[%clk 0:01:48]}  cxb6 {[%clk 0:01:56]} 21. Ng3 {[%clk 0:01:41]}  Nd6 {[%clk 0:01:50]} 22. Qb2 {[%clk 0:01:29]}  Nf8 {[%clk 0:01:34]} 23. Ne5 {[%clk 0:01:28]}  Ng6 {[%clk 0:01:29]} 24. Rfc1 {[%clk 0:01:24]}  Nh4 {[%clk 0:01:24]} 25. Nc6+ {[%clk 0:01:09]}  Ka8 {[%clk 0:00:34]} 26. Qe2 {[%clk 0:01:09]}  b5 {[%clk 0:00:20]} 27. Nxd8 {[%clk 0:01:07]}  Rxd8 {[%clk 0:00:21]} 28. Rc7 {[%clk 0:00:59]}  Kb8 {[%clk 0:00:19]} 29. Rac1 {[%clk 0:00:53]}  Nhxf5 {[%clk 0:00:13]} 30. gxf5 {[%clk 0:00:53]}  Nxf5 {[%clk 0:00:13]} 31. Qf3 {[%clk 0:00:47]}  Rc8 {[%clk 0:00:03]} 32. Rxc8+ {[%clk 0:00:29]}  Bxc8 {[%clk 0:00:03]} 33. Rxc8+ {[%clk 0:00:25]}  Kxc8 {[%clk 0:00:04]} 34. Nxf5 {[%clk 0:00:25]}  Kb8 {[%clk 0:00:02]} 35. Qxh3 {[%clk 0:00:26]}  a5 {[%clk 0:00:01]} 36. Ng3 {[%clk 0:00:20]}  a4 {[%clk 0:00:01]} 37. bxa4 {[%clk 0:00:20]}  bxa4 {[%clk 0:00:02]} 38. Qd7 {[%clk 0:00:20]}  Qa6 {[%clk 0:00:02]} 39. Qd8+ {[%clk 0:00:20]}  Kb7 {[%clk 0:00:01]} 40. Qxd5+ {[%clk 0:00:21]}  Qc6 {[%clk 0:00:01]} 41. Qxf7+ {[%clk 0:00:19]}  Ka6 {[%clk 0:00:01]} 42. d5 {[%clk 0:00:18]}  Qb6 {[%clk 0:00:01]} 43. Qe8 {[%clk 0:00:17]}  g4 {[%clk 0:00:01]} 44. Qxa4+ {[%clk 0:00:17]}  Kb7 {[%clk 0:00:01]} 45. Qc6+ {[%clk 0:00:17]}  Ka7 {[%clk 0:00:02]} 46. Qxb6+ {[%clk 0:00:17]}  Ka8 {[%clk 0:00:02]} 47. Qb5 {[%clk 0:00:18]}  Ka7 {[%clk 0:00:02]} 48. d6 {[%clk 0:00:19]}  Ka8 {[%clk 0:00:02]} 49. d7 {[%clk 0:00:20]}  Ka7 {[%clk 0:00:03]} 50. e4 {[%clk 0:00:20]}  Ka8 {[%clk 0:00:03]} 51. d8=Q+ {[%clk 0:00:20]}  Ka7 {[%clk 0:00:04]} 52. Qdb8# {[%clk 0:00:21]} 1-0


[Site "https://www.chess.com"]